[Event "Reykjavik Open 2024"]
[Site "Reykjavik"]
[Date "2024.03.15"]
[Round "1.18"]
[White "Suleymenov, Alisher"]
[Black "Schliebener, Stephan"]
[Result "1-0"]
[ECO "E11"]
[WhiteElo "2506"]
[BlackElo "2088"]
[Annotator "TA"]
[PlyCount "73"]
[EventDate "2024.03.12"]
[EventCountry "ISL"]
[SourceTitle "playchess.com"]
[Source "ChessBase"]
[SourceQuality "1"]
[TimeControl "40/5400+30:1800+30"]

{[%evp 14,73,29,26,40,16,37,30,35,8,10,16,18,0,0,0,37,36,48,47,50,44,42,33,45,31,39,41,53,42,51,50,46,40,40,48,53,0,0,0,0,-21,15,0,0,0,10,6,75,99,240,241,1070,1042,1208,1203,1200,1200,29994,29995,29997,29998]} 1. d4 {[%emt 0:00:05]} Nf6 {[%emt 0:00:04]} 2. c4 {[%emt 0:00:07]} e6 {[%emt 0:00:02]} 3. Nf3 {[%emt 0:00:06]} Bb4+ {[%emt 0:00:05]} 4. Bd2 {[%emt 0:00:10]} Qe7 {[%emt 0:00:08]} 5. g3 {[%emt 0:00:29]} O-O {[%emt 0:01:55]} 6. Bg2 {[%emt 0:00:05]} Bxd2+ {[%emt 0:00:22]} 7. Qxd2 {[%emt 0:00:06]} d5 {[%emt 0:08:10]} 8. O-O {[%emt 0:00:11]} Nbd7 {[%emt 0:00:42]} 9. b3 {[%emt 0:20:48]} Ne4 {[%emt 0:10:09]} 10. Qc2 {[%emt 0:02:35]} c6 {[%emt 0:01:53] Weiß hat minimalen Vorteil.} 11. Ne1 {[%emt 0:03:19]} f5 {[%emt 0:01:17]} 12. Nd3 {[%emt 0:01:23]} b6 {[%emt 0:04:07]} 13. cxd5 {[%emt 0:06:09]} cxd5 {[%emt 0:01:04]} 14. Nd2 {[%emt 0:00:18]} Nxd2 {[%emt 0:02:53]} 15. Qxd2 {[%emt 0:00:08]} Bb7 {[%emt 0:01:11]} 16. Rfc1 {[%emt 0:12:54]} Rfc8 {[%emt 0:02:37] Wehrt Rc7 ab} 17. b4 {[%emt 0:00:07][%cal Bb3b4,Bb4b5][%mdl 32]} Ba6 {[%emt 0:07:20]} 18. Nb2 {[%emt 0:10:39]} Nf6 {[%emt 0:09:48]} 19. a4 {[%emt 0:01:05]} Ne4 {[%emt 0:00:39]} 20. Qe1 {[%emt 0:00:08]} Rxc1 {[%emt 0:00:42]} 21. Rxc1 {[%emt 0:00:05]} Rc8 {[%emt 0:00:15]} 22. b5 {[%emt 0:02:19]} Bb7 {[%emt 0:00:23]} 23. Rxc8+ {[%emt 0:00:22]} Bxc8 {[%emt 0:00:06]} 24. Qc1 {[%emt 0:00:09]} Nd6 {[%emt 0:02:47]} 25. Nd3 {[%emt 0:04:59]} (25. Bf1 $14) 25... a6 $11 {[%emt 0:01:11]} 26. bxa6 {[%emt 0:14:07]} Bxa6 {[%emt 0:04:41]} 27. Nf4 {[%emt 0:00:05]} Bb7 {[%emt 0:09:08] Verhindert Qc6} 28. Qe3 {[%emt 0:04:09][%cal Og2d5] [#] Bxd5! wäre nun fies.} Kf7 $1 {[%emt 0:02:14]} 29. Qe5 $36 {[%emt 0:02:22][%mdl 2048] Weiss drückt.} Nc4 {[%emt 0:03:24]} 30. Qb8 {[%emt 0:00:20] Und jetzt Qh8 wäre schön.} Bc6 {[%emt 0:00:35]} (30... g5 $1 $11 {hält das Gleichgewicht.} 31. Nd3 Bc6) 31. Qh8 $16 {[%emt 0:00:59] Weiß steht aktiver.} h6 {[%emt 0:01:29] Verliert die Partie.} (31... Bd7 $16 {kämpft weiter.}) 32. Bf3 $18 {[%emt 0:00:43]} Qf6 $2 {[%emt 0:02:55]} (32... Kf6 33. h4 Nd2) 33. Qc8 {[%emt 0:02:21] [#] Schwarz muss nun Bh5+ beachten.} Bxa4 {[%emt 0:01:22]} 34. Bh5+ {[%emt 0:01:01]} Ke7 {[%emt 0:01:27]} 35. Qc7+ {[%emt 0:00:12]} Kf8 {[%emt 0:02:32]} 36. Ng6+ {[%emt 0:00:58]} Ke8 {[%emt 0:01:37]} 37. Qc8+ {[%emt 0:00:10] Gewichteter Fehlerwert: Weiß=0.07 (makellos) /Schwarz=0.36.  Fehler:       	Weiß=1     	Schwarz=3     Ungenau:       	Weiß=1     	Schwarz=2     OK:         	Weiß=9     	Schwarz=8     Bester:       	Weiß=3     	Schwarz=1     Stark:        	---       	Schwarz=1} 1-0

[Event "Reykjavik Open 2024"]
[Site "Reykjavik"]
[Date "2024.03.15"]
[Round "1.20"]
[White "Balakrishnan, Praveen"]
[Black "Beisteiner, Joachim"]
[Result "1-0"]
[ECO "D37"]
[WhiteElo "2490"]
[BlackElo "2079"]
[Annotator "TA"]
[PlyCount "75"]
[EventDate "2024.03.12"]
[EventCountry "ISL"]
[SourceTitle "playchess.com"]
[Source "ChessBase"]
[SourceQuality "1"]
[TimeControl "40/5400+30:1800+30"]

{[%evp 12,75,16,10,21,19,11,21,27,19,31,37,50,19,39,31,41,36,65,32,43,41,45,33,36,38,42,42,36,56,247,59,90,101,99,12,84,58,76,77,103,94,141,98,126,119,116,104,104,106,130,97,215,86,271,278,256,266,269,279,266,270,272,268,517,472]} 1. d4 {[%emt 0:00:04]} d5 {[%emt 0:00:16]} 2. Nf3 {[%emt 0:00:07]} e6 {[%emt 0:00:10]} 3. c4 {[%emt 0:01:47]} Nf6 {[%emt 0:00:10]} 4. Nc3 {[%emt 0:00:09]} Be7 {[%emt 0:00:17]} 5. Bf4 {[%emt 0:00:07]} O-O {[%emt 0:00:27]} 6. e3 {[%emt 0:00:07]} b6 {[%emt 0:00:18]} 7. Be2 {[%emt 0:00:09]} Bb7 {[%emt 0:01:08]} 8. cxd5 {[%emt 0:05:59]} Nxd5 {[%emt 0:02:19]} 9. Nxd5 {[%emt 0:00:34]} Qxd5 {[%emt 0:00:42] The position is equal.} 10. Bxc7 {[%emt 0:05:33]} Bb4+ {[%emt 0:01:11]} 11. Kf1 {[%emt 0:01:38][%cal Be1f1,Bf1g1,Bg1h2][%mdl 32]} Nc6 {[%emt 0:01:50]} 12. a3 {[%emt 0:04:29]} Be7 {[%emt 0:04:35]} 13. Kg1 {[%emt 0:12:14]} Rac8 {[%emt 0:14:09]} 14. Bg3 {[%emt 0:00:18]} Rfd8 {[%emt 0:02:52]} 15. h3 {[%emt 0:03:12]} Bd6 {[%emt 0:01:09]} 16. Kh2 {[%emt 0:08:07]} Bxg3+ {[%emt 0:02:13]} 17. fxg3 {[%emt 0:00:09]} e5 {[%emt 0:10:12]} 18. dxe5 {[%emt 0:09:57]} Qe4 {[%emt 0:08:33]} ({Much weaker is} 18... Nxe5 19. Qxd5 Rxd5 20. Rhc1 $16) 19. Qb1 {[%emt 0:07:50]} Qxe3 {[%emt 0:02:26]} 20. Re1 {[%emt 0:00:48][%cal Oe2a6] [#] Hoping for Ba6!} Qf2 $2 {[%emt 0:16:25]} (20... Nxe5 $14 21. Nxe5 (21. Bd1 Qf2 $17) 21... Qxe5) 21. Bf1 $2 {[%emt 0:04:08]} (21. Ng5 $18 Nd4 22. Qxh7+ Kf8 23. Ne4 Bxe4 24. Qxe4) 21... Nd4 {[%emt 0:06:13]} 22. Nxd4 {[%emt 0:01:34]} Qxd4 {[%emt 0:00:06]} 23. Re2 {[%emt 0:08:05]} ({White should play} 23. e6 $16 {Threatens to win with exf7+.} fxe6 24. Rxe6) 23... Re8 {[%emt 0:08:41]} (23... Bd5 $11 {keeps the balance.}) 24. Qf5 {[%emt 0:06:32]} Rc5 {[%emt 0:00:39]} 25. Qf4 $40 {[%emt 0:04:12][%mdl 128] White wants a kill.} Qd7 {[%emt 0:05:05]} 26. Rae1 {[%emt 0:02:03]} Qe6 {[%emt 0:00:52]} (26... g6 $142) 27. Rf2 {[%emt 0:01:36]} h6 {[%emt 0:01:12][%cal Og7g5]} 28. Bd3 {[%emt 0:05:13] Black must now prevent Bf5.} Bd5 {[%emt 0:01:29]} 29. Bb1 {[%emt 0:01:42]} Bb3 {[%emt 0:02:48]} 30. Rfe2 {[%emt 0:02:24]} Bc4 {[%emt 0:03:16]} 31. Rd2 {[%emt 0:01:48]} Bd5 {[%emt 0:01:52]} (31... Rd5 $16) 32. Qd4 {[%emt 0:01:48]} (32. b4 $18 Rc7 33. Bf5) 32... Ba2 $2 {[%emt 0:00:45] [#]} (32... Bb3 $16) 33. Bxa2 $18 {[%emt 0:01:14]} Qxa2 {[%emt 0:00:05]} 34. b4 $1 {[%emt 0:00:41][%csl LRa2,LRc5]} Rc2 {[%emt 0:00:04]} 35. Rxc2 {[%emt 0:00:08]} Qxc2 {[%emt 0:00:04]} 36. Qd7 {[%emt 0:00:13][%csl LRa7,LRe8] Prevents Qc7.} Re6 {[%emt 0:02:45]} 37. Qxa7 {[%emt 0:01:01]} Kh7 $2 {[%emt 0:00:13]} (37... Qd3 {is a better defense.} 38. Rc1 Rg6 39. Qa8+ Kh7) 38. Qxf7 {[%emt 0:00:09] Weighted Error Value: White=0.24 (precise) /Black=0.42.  Loses game:     	---       	Black=2      Missed win:     	White=1     	---        Mistake:       	White=2     	Black=4      Inaccurate:     	White=4     	Black=3      OK:         	White=13    	Black=7      Best:        	White=3     	---} 1-0

[Event "Reykjavik Open 2024"]
[Site "Reykjavik"]
[Date "2024.03.15"]
[Round "1.21"]
[White "Payne, Matthew J"]
[Black "Stefansson, Hannes"]
[Result "1/2-1/2"]
[ECO "B43"]
[WhiteElo "2077"]
[BlackElo "2481"]
[Annotator "TA"]
[PlyCount "55"]
[EventDate "2024.03.12"]
[EventCountry "ISL"]
[SourceTitle "playchess.com"]
[Source "ChessBase"]
[SourceQuality "1"]
[TimeControl "40/5400+30:1800+30"]

{[%evp 16,55,29,-16,108,129,109,129,93,86,96,86,147,138,162,155,90,77,78,29,29,22,67,31,35,0,0,0,0,0,7,0,35,31,22,6,9,11,16,18,11,9]} 1. e4 {[%emt 0:00:07]} c5 {[%emt 0:00:28]} 2. Nf3 {[%emt 0:00:30]} e6 {[%emt 0:01:44]} 3. Nc3 {[%emt 0:00:59]} a6 {[%emt 0:08:08]} 4. g3 {[%emt 0:01:29]} b5 {[%emt 0:00:57]} 5. d4 {[%emt 0:03:44]} cxd4 {[%emt 0:04:35]} 6. Nxd4 {[%emt 0:00:10]} b4 {[%emt 0:09:42]} 7. Na4 {[%emt 0:02:57]} Bb7 {[%emt 0:01:15]} 8. Bg2 {[%emt 0:00:34]} Nf6 {[%emt 0:00:50]} 9. O-O {[%emt 0:01:03]} d5 {[%emt 0:15:22]} (9... Bxe4 $11 10. Bxe4 Nxe4) 10. exd5 $16 {[%emt 0:09:45]} Bxd5 {[%emt 0:00:32]} 11. Bxd5 {[%emt 0:04:47]} Nxd5 {[%emt 0:00:32] White is better.} 12. c4 {[%emt 0:13:50]} bxc3 {[%emt 0:01:45]} 13. bxc3 {[%emt 0:00:21]} (13. Nxc3 Nxc3 14. bxc3 Nd7) 13... Nf6 {[%emt 0:11:47]} (13... Be7 $142) 14. Rb1 {[%emt 0:07:43]} Nbd7 {[%emt 0:03:16] [#]} 15. Re1 $1 {[%emt 0:07:51]} Rc8 {[%emt 0:09:59]} 16. Qf3 {[%emt 0:18:09]} Bc5 {[%emt 0:06:27] [#]} 17. Nxc5 {[%emt 0:08:23]} (17. Nc6 $1 $16 {[%cal Rc6d8]} Bxf2+ 18. Kxf2) 17... Nxc5 $11 {[%emt 0:00:11]} 18. Ba3 {[%emt 0:04:53] Hoping for Bxc5.} O-O {[%emt 0:03:11]} 19. Nb3 {[%emt 0:03:45] White has more active pieces.} Nfd7 {[%emt 0:02:40]} 20. Nxc5 {[%emt 0:02:57]} Nxc5 {[%emt 0:00:15]} 21. Qe3 {[%emt 0:00:33]} Qa5 {[%emt 0:02:13]} 22. Bb4 {[%emt 0:00:30]} Qc7 {[%emt 0:00:48]} 23. Red1 {[%emt 0:00:59]} h6 {[%emt 0:01:55] Black is weak on the dark squares} 24. Rd4 {[%emt 0:00:49]} Qb6 {[%emt 0:05:08] ...a5 would now be deadly.} 25. Rbd1 {[%emt 0:01:11] The position is equal.} Rfe8 {[%emt 0:01:05]} 26. Rc4 {[%emt 0:02:35]} Na4 {[%emt 0:00:35]} 27. Rxc8 {[%emt 0:00:27]} Rxc8 {[%emt 0:00:08]} 28. Qxb6 {[%emt 0:01:19] Weighted Error Value: White=0.11 (very precise) /Black=0.19 (very precise) .  Mistake:       	White=1     	Black=1      Inaccurate:     	White=2     	Black=2      OK:         	White=4     	Black=6      Best:        	White=2     	Black=2      Strong:       	White=1     	---} 1/2-1/2

[Event "Reykjavik Open 2024"]
[Site "Reykjavik"]
[Date "2024.03.15"]
[Round "1.22"]
[White "Steingrimsson, Hedinn"]
[Black "Jaksland, Tim"]
[Result "1-0"]
[ECO "E46"]
[WhiteElo "2477"]
[BlackElo "2076"]
[Annotator "TA"]
[PlyCount "63"]
[EventDate "2024.03.12"]
[EventCountry "ISL"]
[SourceTitle "playchess.com"]
[Source "ChessBase"]
[SourceQuality "1"]
[TimeControl "40/5400+30:1800+30"]

{[%evp 9,63,-5,0,-3,12,-10,-10,0,0,-2,-9,-41,0,-1,9,10,22,25,16,16,35,32,27,37,46,28,27,29,34,25,107,105,102,107,208,82,99,116,121,110,185,195,168,172,222,224,262,245,265,243,465,454,472,477,734,743]} 1. d4 {[%emt 0:00:03]} Nf6 {[%emt 0:00:05]} 2. c4 {[%emt 0:00:05]} e6 {[%emt 0:00:20]} 3. Nc3 {[%emt 0:01:47]} Bb4 {[%emt 0:00:17]} 4. e3 {[%emt 0:00:10]} O-O {[%emt 0:00:43]} 5. Nge2 {[%emt 0:01:18]} c6 {[%emt 0:01:36]} 6. a3 {[%emt 0:00:44]} Ba5 {[%emt 0:00:06]} 7. b4 {[%emt 0:09:47]} Bc7 {[%emt 0:00:09]} 8. Bb2 {[%emt 0:00:51] Die Stellung ist ausgeglichen.} d5 {[%emt 0:04:14]} 9. Ng3 {[%emt 0:00:09]} Nbd7 {[%emt 0:10:39]} 10. Qc2 {[%emt 0:02:55]} Re8 {[%emt 0:18:10]} 11. Rd1 {[%emt 0:00:41]} Nf8 {[%emt 0:14:20]} 12. Be2 {[%emt 0:07:55]} Ng6 {[%emt 0:10:40]} 13. O-O {[%emt 0:00:40]} Qe7 {[%emt 0:02:04]} 14. f4 {[%emt 0:14:16]} Nh4 {[%emt 0:01:53]} 15. e4 {[%emt 0:18:07]} dxe4 {[%emt 0:07:59]} 16. Ncxe4 {[%emt 0:00:12]} Nxe4 {[%emt 0:01:41]} 17. Nxe4 {[%emt 0:01:51]} a5 {[%emt 0:08:52]} 18. Qc3 {[%emt 0:01:21] [#] Und jetzt d5 wäre schön.} f6 {[%emt 0:03:07][%cal Bf7f6,Bf6e5][%mdl 32]} 19. Rfe1 {[%emt 0:04:27]} Ng6 {[%emt 0:02:25]} (19... axb4 $11 {bleibt in der Remisbreite.} 20. axb4 Qf7) 20. g3 $16 {[%emt 0:00:21] Weiß steht aktiver.} axb4 {[%emt 0:02:27]} 21. axb4 {[%emt 0:00:31]} e5 {[%emt 0:05:04]} (21... Rd8 $16) 22. fxe5 {[%emt 0:07:54]} (22. dxe5 $18 {und Weiss behält klar die Oberhand.} fxe5 23. c5) 22... fxe5 {[%emt 0:00:07]} 23. d5 {[%emt 0:00:02]} cxd5 {[%emt 0:00:39]} 24. cxd5 {[%emt 0:00:02]} Bd6 {[%emt 0:01:56] [#]} (24... Bb6+ $16 25. Kh1 Bf5) 25. Nxd6 $1 $18 {[%emt 0:02:14]} Qxd6 {[%emt 0:00:05]} 26. Qc5 $36 {[%emt 0:00:07][%mdl 2048] Schwarz muss aufpassen.} Qxc5+ {[%emt 0:03:17]} (26... Qd8 {kämpft weiter.} 27. d6 Kh8) 27. bxc5 {[%emt 0:00:01]} Ra2 {[%emt 0:00:07]} 28. Rd2 {[%emt 0:02:08]} Ra5 {[%emt 0:00:30]} 29. Rc1 {[%emt 0:00:43] Droht stark c6.} Bf5 $2 {[%emt 0:00:12]} (29... Rd8 30. h4 Re8) 30. c6 {[%emt 0:12:06] Weiß steht klar auf Gewinn.} bxc6 {[%emt 0:01:05]} 31. dxc6 {[%emt 0:00:01]} Kf7 {[%emt 0:00:37]} (31... h6 $142 32. c7 Raa8) 32. Rf1 {[%emt 0:00:34] Gewichteter Fehlerwert: Weiß=0.09 (makellos) /Schwarz=0.32.  Fehler:       	Weiß=1     	Schwarz=6     Ungenau:       	Weiß=1     	Schwarz=1     OK:         	Weiß=6     	Schwarz=10    Bester:       	Weiß=4     	---        Stark:        	Weiß=1     	---} 1-0

[Event "Reykjavik Open 2024"]
[Site "Reykjavik"]
[Date "2024.03.15"]
[Round "1.23"]
[White "Barthel, Ansgar"]
[Black "Zhu, Jiner"]
[Result "0-1"]
[ECO "B45"]
[WhiteElo "2073"]
[BlackElo "2467"]
[Annotator "TA"]
[PlyCount "80"]
[EventDate "2024.03.12"]
[EventCountry "ISL"]
[SourceTitle "playchess.com"]
[Source "ChessBase"]
[SourceQuality "1"]
[TimeControl "40/5400+30:1800+30"]

{[%evp 12,80,33,35,47,39,50,51,29,37,61,25,29,1,40,30,51,34,39,0,45,18,43,0,8,-1,77,37,47,0,0,29,64,0,0,0,-12,0,0,-54,-64,-202,-206,-200,-214,-208,-216,-231,-221,-225,-225,-222,-220,-236,-238,-244,-225,-231,-145,-562,-562,-562,-540,-548,-542,-671,-645,-663,-651,-700,-690]} 1. e4 {[%emt 0:00:11]} c5 {[%emt 0:00:08]} 2. Nf3 {[%emt 0:00:02]} Nc6 {[%emt 0:00:16]} 3. d4 {[%emt 0:00:12]} cxd4 {[%emt 0:00:14]} 4. Nxd4 {[%emt 0:00:07]} Nf6 {[%emt 0:00:08]} 5. Nc3 {[%emt 0:00:07]} e6 {[%emt 0:00:12]} 6. Ndb5 {[%emt 0:00:40]} Bc5 {[%emt 0:00:17]} 7. Bf4 {[%emt 0:00:18] Threatens to win with Nc7+.} O-O {[%emt 0:00:14]} 8. Bc7 $1 {[%emt 0:00:10]} Qe7 {[%emt 0:00:06] White must now prevent ...d5.} 9. Bd6 $1 {[%emt 0:00:09]} Bxd6 {[%emt 0:00:08] White is slightly better.} 10. Qxd6 {[%emt 0:00:08]} Qd8 {[%emt 0:00:07]} 11. O-O-O {[%emt 0:00:22]} a6 {[%emt 0:00:12]} 12. Nd4 {[%emt 0:00:05]} Ne7 {[%emt 0:00:11]} 13. h4 {[%emt 0:02:16]} b5 {[%emt 0:00:19]} 14. h5 {[%emt 0:02:07]} Ne8 {[%emt 0:00:14]} 15. Qh2 {[%emt 0:00:35]} h6 {[%emt 0:00:10]} 16. g4 {[%emt 0:18:15]} Bb7 {[%emt 0:01:21]} 17. Bg2 {[%emt 0:12:42]} b4 {[%emt 0:07:45]} 18. Nce2 {[%emt 0:04:17]} Nf6 {[%emt 0:12:38] [#]} (18... Rc8 $11) 19. g5 $1 {[%emt 0:38:57]} hxg5 {[%emt 0:00:46][%cal Od8b8]} 20. h6 {[%emt 0:00:51] hxg7 would kill now.} Ng4 $1 {[%emt 0:02:27]} 21. Qg3 {[%emt 0:08:57]} Nxh6 {[%emt 0:00:13]} 22. Qxg5 {[%emt 0:00:10]} (22. f4 $14 g4 23. Rh5) 22... Ng6 $36 {[%emt 0:04:16][%mdl 2048] Black has good play.} 23. Nxe6 {[%emt 0:03:06]} Qxg5+ {[%emt 0:00:15]} 24. Nxg5 {[%emt 0:00:05]} f6 {[%emt 0:00:56]} 25. Nh3 {[%emt 0:01:34]} (25. Nf3 $11) 25... Nh4 $1 $15 {[%emt 0:00:13]} 26. Bf1 {[%emt 0:03:40]} (26. Rxd7 $2 {too greedy.} Bc8 27. Rd3 Nxg2 $19) (26. Nhf4 $15 Nxg2 27. Nxg2 Bxe4 28. Rhg1) 26... Bxe4 $19 {[%emt 0:01:31]} 27. Rg1 {[%emt 0:00:06]} Nf3 {[%emt 0:00:54]} 28. Ng3 {[%emt 0:02:15]} Nxg1 {[%emt 0:01:04]} 29. Nxe4 {[%emt 0:00:04]} Nxh3 {[%emt 0:00:10]} 30. Bxh3 {[%emt 0:00:04]} Nf7 {[%emt 0:04:04]} 31. Bxd7 {[%emt 0:00:42] [#]} Rfd8 $1 {[%emt 0:00:15]} 32. Rg1 {[%emt 0:01:30]} Ng5 {[%emt 0:00:15]} (32... Rxd7 33. Nxf6+ Kh8 34. Rh1+ (34. Nxd7 a5 $16) 34... Nh6 35. Nxd7 $18) 33. Nc5 {[%emt 0:01:08]} Ra7 {[%emt 0:02:35]} 34. f4 {[%emt 0:00:27]} Nf7 {[%emt 0:00:47]} 35. Bf5 {[%emt 0:00:48][%mdl 8192] Loses the game.} (35. Be6 $17) 35... Rd5 $1 {[%emt 0:00:55][%csl LRc5,LRf5] Black is clearly winning.} 36. Ne6 {[%emt 0:00:45]} Rxf5 {[%emt 0:00:10]} 37. Nxg7 {[%emt 0:00:05]} Rd5 {[%emt 0:01:04]} (37... Rxf4 38. Nh5+ (38. Ne6+ Ng5 $17) 38... Kf8 39. Nxf4 $11) 38. Ne6+ {[%emt 0:00:57]} Kh7 {[%emt 0:00:32]} 39. Nf8+ {[%emt 0:00:30] [#]} Kh6 $1 {[%emt 0:00:08]} 40. Rh1+ {[%emt 0:00:34]} Rh5 {[%emt 0:00:10] Weighted Error Value: White=0.39/Black=0.12 (very precise) .  Loses game:     	White=1     	---        Mistake:       	White=3     	Black=1      Inaccurate:     	White=5     	Black=3      OK:         	White=12    	Black=12     Best:        	---       	Black=6      Strong:       	White=2     	Black=2} 0-1

[Event "Reykjavik Open 2024"]
[Site "Reykjavik"]
[Date "2024.03.15"]
[Round "1.24"]
[White "Kjartansson, Gudmundur"]
[Black "Schroer, Marcel"]
[Result "1-0"]
[ECO "D94"]
[WhiteElo "2465"]
[BlackElo "2073"]
[Annotator "TA"]
[PlyCount "85"]
[EventDate "2024.03.12"]
[EventCountry "ISL"]
[SourceTitle "playchess.com"]
[Source "ChessBase"]
[SourceQuality "1"]
[TimeControl "40/5400+30:1800+30"]

{[%evp 23,85,0,0,0,27,32,32,2,10,0,0,0,7,0,10,10,24,27,31,20,27,19,20,25,23,25,62,58,57,66,100,97,78,80,84,76,70,77,87,92,91,87,119,120,129,129,146,142,184,176,159,144,165,140,205,167,188,197,222,220,314,234,436,422]} 1. c4 {[%emt 0:00:04]} c6 {[%emt 0:00:16]} 2. Nf3 {[%emt 0:00:06]} d5 {[%emt 0:00:35]} 3. e3 {[%emt 0:00:26]} Nf6 {[%emt 0:00:34]} 4. Nc3 {[%emt 0:00:08]} g6 {[%emt 0:04:01]} 5. d4 {[%emt 0:00:07]} Bg7 {[%emt 0:00:05]} 6. Be2 {[%emt 0:00:08]} O-O {[%emt 0:00:07]} 7. O-O {[%emt 0:00:03]} dxc4 {[%emt 0:00:08]} 8. Bxc4 {[%emt 0:02:02]} Bg4 {[%emt 0:00:22]} 9. h3 {[%emt 0:02:55]} Bxf3 {[%emt 0:00:08]} 10. Qxf3 {[%emt 0:00:04]} Nbd7 {[%emt 0:00:35]} 11. Rd1 {[%emt 0:01:25]} e5 {[%emt 0:00:48]} 12. Bb3 {[%emt 0:01:49]} Qe7 {[%emt 0:12:27]} 13. Bd2 {[%emt 0:03:57]} e4 {[%emt 0:08:40]} 14. Qf4 {[%emt 0:10:26]} Nb6 {[%emt 0:04:21]} 15. a3 {[%emt 0:03:48] White is slightly better.} Rfe8 {[%emt 0:01:06]} 16. Rac1 {[%emt 0:01:48]} Rad8 {[%emt 0:04:15]} 17. Qh4 {[%emt 0:07:54]} h6 {[%emt 0:09:37]} 18. Rc2 {[%emt 0:06:52]} Kh7 {[%emt 0:01:30]} 19. Rf1 {[%emt 0:01:51]} Nfd5 {[%emt 0:05:43]} 20. Qxe7 {[%emt 0:00:47]} Rxe7 {[%emt 0:00:05]} 21. Na2 {[%emt 0:13:23]} f5 {[%emt 0:04:59]} 22. a4 {[%emt 0:03:29][%cal Ba3a4,Ba4a5][%mdl 32]} a6 {[%emt 0:01:54]} 23. Ba5 {[%emt 0:02:59] [#] Bxd5 is the strong threat.} Rdd7 {[%emt 0:00:14]} 24. Nc3 {[%emt 0:01:06]} Bf6 {[%emt 0:03:24]} 25. Bxb6 {[%emt 0:01:30]} Nxb6 {[%emt 0:00:06]} 26. a5 {[%emt 0:00:15]} Nd5 {[%emt 0:01:08]} 27. Nxd5 {[%emt 0:03:19]} cxd5 {[%emt 0:00:06]} 28. Rc5 {[%emt 0:07:08]} Rg7 {[%emt 0:14:14]} 29. Rxd5 {[%emt 0:04:52]} Rxd5 {[%emt 0:00:54]} 30. Bxd5 $16 {[%emt 0:00:05][%mdl 4096] Endgame. KRB-KRB} Rc7 {[%emt 0:01:32] Prevents Rc1.} 31. Rb1 {[%emt 0:08:13]} Rd7 {[%emt 0:03:42]} 32. Be6 {[%emt 0:01:06]} Rc7 {[%emt 0:00:08]} 33. b4 {[%emt 0:01:46]} f4 {[%emt 0:01:15]} 34. Bd5 {[%emt 0:06:09]} fxe3 {[%emt 0:00:10]} 35. fxe3 {[%emt 0:00:04][%cal Og1f2]} Bg5 {[%emt 0:00:26]} 36. Rb3 {[%emt 0:00:38]} ({Much less strong is} 36. Bxe4 $6 Bxe3+ 37. Kf1 Bxd4 $11) 36... Rd7 {[%emt 0:06:17]} 37. Be6 {[%emt 0:00:51]} Rc7 {[%emt 0:00:34]} 38. g3 {[%emt 0:04:44]} Kg7 {[%emt 0:06:40]} (38... b5 $16 {might work better.} 39. Bd5 (39. axb6 Rb7 $18) 39... Kg7) 39. h4 {[%emt 0:00:12][%cal Bh3h4,Bh4h5][%mdl 32]} Be7 {[%emt 0:00:35]} 40. Bd5 {[%emt 0:00:47]} g5 {[%emt 0:03:25]} 41. h5 {[%emt 0:07:04]} Bd6 {[%emt 0:01:03]} (41... g4 $142 42. Bxe4 Kf6) 42. Kg2 {[%emt 0:02:28]} ({Not} 42. Bxe4 Bxg3 43. b5 Be1 $16) 42... Re7 $2 {[%emt 0:07:00] [#]} (42... g4 {was called for.} 43. Bxe4 Kf8) 43. b5 {[%emt 0:05:48] Weighted Error Value: White=0.08 (flawless) /Black=0.22 (precise) .  Mistake:       	---       	Black=3      Inaccurate:     	White=1     	Black=4      OK:         	White=13    	Black=6} 1-0